bitfinex-derivatives/quotes_ETHF0:USTF0_20241013
["timestamp","ask_amount","ask_price","bid_price","bid_amount"]
[1728832085092,0.40794,2451.9,2451.8,0.40796]
[1728832085295,0.40794,2451.9,2451.7,3.2078]
[1728832085296,0.40794,2451.9,2451.7,3.61577]
[1728832085491,1.59072643,2452.0,2451.7,3.61577]
[1728832085688,0.40796,2451.8,2451.7,3.61577]
[1728832087002,1.99867643,2451.9,2451.8,0.40796]
[1728832087497,1.99865643,2452.0,2451.8,0.40796]
[1728832087695,1.59072643,2452.0,2451.7,3.2078]
[1728832087889,1.59072643,2452.0,2451.8,0.40796]
[1728832087890,1.59072643,2451.9,2451.8,0.40796]
[1728832088087,1.99866643,2452.0,2451.9,0.40794]
[1728832088492,1.99866643,2452.0,2451.8,0.40795]
[1728832089294,1.99866643,2452.0,2451.9,0.40794]
[1728832089295,2.50666643,2452.0,2451.9,0.40794]
[1728832089593,2.60772643,2452.0,2451.9,0.40794]
[1728832090309,2.8118001,2452.0,2451.9,0.40794]
[1728832090801,2.60772643,2452.0,2451.9,0.40794]
[1728832091001,3.21972996,2452.0,2451.8,0.40795]
[1728832091193,3.01565643,2452.0,2451.8,0.40795]
[1728832091398,2.60772643,2452.0,2451.8,0.40795]
[1728832091593,1.99866643,2451.9,2451.5,4.42973835]
[1728832091796,0.4755,2451.8,2451.7,0.40796]
[1728832091999,0.4755,2451.8,2451.5,4.42973835]
[1728832092196,0.4755,2451.8,2451.5,1.96773835]
[1728832092197,0.40798,2451.7,2451.5,1.96773835]
[1728832092396,0.40799,2451.6,2451.5,0.89811]
[1728832092597,0.5142,2451.6,2451.5,0.89811]
[1728832092807,0.5142,2451.6,2451.5,4.97731]
[1728832093400,0.40797,2451.8,2451.7,0.40798]
[1728832094698,2.06622643,2451.9,2451.5,3.3601]
[1728832094898,2.47417643,2451.9,2451.8,0.40796]
[1728832095497,0.40797,2451.8,2451.7,0.40797]
[1728832096411,2.47417643,2451.9,2451.8,0.40796]
[1728832097109,2.47417643,2451.9,2451.5,4.42973835]
[1728832097110,2.06622643,2451.9,2451.5,4.42973835]
[1728832097404,2.06622643,2451.9,2451.5,3.3601]
[1728832097405,0.40796,2451.8,2451.5,3.3601]
[1728832097610,0.40796,2451.8,2451.7,0.40798]
[1728832099409,0.40796,2451.8,2451.5,3.3601]
[1728832099410,0.88345,2451.9,2451.8,0.40796]
[1728832099812,0.4755,2451.9,2451.5,3.3601]
[1728832100115,0.40797,2451.8,2451.7,0.40797]
[1728832102414,2.47454455,2451.9,2451.8,0.40796]
[1728832102710,2.47454455,2451.9,2451.8,3.61576]
[1728832104205,2.06659455,2451.9,2451.8,3.61576]
[1728832105120,1.59109455,2451.9,2451.8,3.61576]
[1728832105321,2.09909455,2452.0,2451.8,3.2078]
[1728832105511,1.59109455,2452.0,2451.9,0.88494]
[1728832105717,1.79516245,2452.0,2451.9,1.39194]
[1728832107019,1.79516383,2452.0,2451.9,1.39194]
[1728832108020,0.20406928,2452.0,2451.9,1.39194]
[1728832109019,1.59235965,2452.0,2451.9,1.39194]
[1728832109213,0.20406928,2452.0,2451.9,1.39194]
[1728832109413,1.59242739,2452.0,2451.9,5.47034]
[1728832109614,2.11282739,2452.1,2452.0,0.40793]
[1728832110020,2.11282739,2452.1,2452.0,4.48633]
[1728832111626,1.58208459,2452.1,2452.0,4.48633]
[1728832111823,1.58208459,2452.1,2452.0,5.80633]
[1728832112018,2.11282739,2452.1,2452.0,1.72793]
[1728832113026,0.5204,2452.1,2452.0,1.72793]
[1728832113324,2.11282739,2452.1,2452.0,1.72793]
[1728832114919,2.11282739,2452.1,2452.0,1.32]
[1728832115114,2.11282739,2452.1,2451.9,2.20493]
[1728832115115,2.45237024,2452.1,2451.9,2.20493]
[1728832115423,1.59272751,2452.0,2451.9,2.20493]
[1728832116326,1.06192642,2452.0,2451.9,1.797]
[1728832116627,3.43312751,2452.1,2452.0,0.40793]
[1728832116822,4.04509722,2452.1,2452.0,0.40793]
[1728832117726,0.72445971,2452.1,2452.0,1.72793]
[1728832117928,2.11340796,2452.1,2452.0,1.72793]
[1728832118119,2.31746767,2452.1,2452.0,1.72793]
[1728832120915,2.72537767,2452.1,2452.0,0.40793]
[1728832121121,2.45236971,2452.1,2452.0,0.40793]
[1728832122214,4.57382911,2452.1,2452.0,0.40793]
[1728832123426,4.16591911,2452.1,2452.0,0.40793]
[1728832123624,4.16591911,2452.1,2452.0,1.72793]
[1728832124022,2.84591911,2452.1,2452.0,1.72793]
[1728832124620,0.72445971,2452.1,2452.0,1.72793]
[1728832125720,2.31787844,2452.1,2452.0,1.72793]
[1728832125928,0.72445606,2452.1,2452.0,1.72793]
[1728832126130,2.3178848,2452.1,2452.0,1.72793]
[1728832127820,1.7974848,2452.1,2452.0,3.04793]
[1728832128016,1.06232375,2452.1,2452.0,2.97493549]
[1728832128220,1.06232375,2452.1,2452.0,4.09143481]
[1728832128420,1.59342874,2452.2,2452.1,0.40791]
[1728832128620,1.59342874,2452.2,2452.1,4.93571]
[1728832128817,1.59342874,2452.2,2452.1,4.5278]
[1728832129026,1.59342874,2452.2,2452.1,4.93571]
[1728832129228,2.07522874,2452.3,2452.2,0.40789]
[1728832129426,4.22838814,2452.5,2452.2,7.13836169]
[1728832129734,1.40314,2452.5,2452.4,4.93566]
[1728832129929,2.79276549,2452.5,2452.4,4.93566]
[1728832130235,2.58873706,2452.5,2452.4,4.93566]
[1728832131032,0.5075,2452.6,2452.4,4.93566]
[1728832131033,1.06206307,2452.6,2452.5,0.40784]
[1728832131230,1.06206307,2452.6,2452.5,1.72784]
[1728832133133,1.95177307,2452.7,2452.5,1.72784]
[1728832133333,1.95177307,2452.7,2452.6,0.40783]
[1728832134626,1.54396307,2452.7,2452.6,1.72783]
[1728832135024,1.06206307,2452.7,2452.6,5.80543]
[1728832135230,1.97466307,2452.8,2452.7,0.40781]
[1728832135436,1.56686307,2452.8,2452.7,1.72781]
[1728832135737,1.97465307,2452.8,2452.7,1.72781]
[1728832136432,1.56686307,2452.8,2452.7,1.72781]
[1728832138239,1.56686307,2452.8,2452.7,4.93561]
[1728832139845,0.5048,2452.8,2452.7,4.93561]
[1728832140145,1.56686307,2452.8,2452.7,4.93561]
[1728832141042,0.5048,2452.8,2452.7,4.93561]
[1728832142136,1.56686307,2452.8,2452.7,3.2078]
[1728832142343,1.97465307,2452.8,2452.7,3.2078]
[1728832142540,1.56686307,2452.8,2452.7,3.2078]
[1728832142743,0.5048,2452.8,2452.7,3.61561]
[1728832143939,0.91259,2452.8,2452.7,3.2078]
[1728832144144,0.5048,2452.8,2452.7,3.61561]
[1728832144545,0.5048,2452.8,2452.7,4.93561]
[1728832145447,0.5048,2452.8,2452.7,1.72781]
[1728832148242,0.5048,2452.8,2452.7,2.21921]
[1728832154653,0.91259,2452.8,2452.7,2.21921]
[1728832154847,0.5048,2452.8,2452.7,2.21921]
[1728832157454,0.91259,2452.8,2452.7,1.72781]
[1728832158052,2.23259,2452.8,2452.6,4.5278]
[1728832158358,1.72781,2452.7,2452.6,3.61561]
[1728832158546,2.78987307,2452.7,2452.6,3.61561]
[1728832158752,2.78987307,2452.7,2452.6,0.40781]
[1728832158951,1.06206307,2452.7,2452.6,1.72781]
[1728832159645,1.46987307,2452.7,2452.6,1.72781]
[1728832160348,1.06206307,2452.7,2452.6,1.72781]
[1728832160755,1.46987307,2452.7,2452.6,1.72781]
[1728832161154,1.06206307,2452.7,2452.6,1.72781]
[1728832162861,1.46987307,2452.7,2452.6,1.72781]
[1728832163057,1.06206307,2452.7,2452.6,1.72781]
[1728832167356,3.82604706,2452.8,2452.7,0.40781]
[1728832167560,4.03006019,2452.8,2452.7,0.40781]
[1728832167760,3.62225019,2452.8,2452.7,0.40781]
[1728832168058,3.41823706,2452.8,2452.7,0.40781]
[1728832168271,3.62224715,2452.8,2452.7,0.40781]
[1728832168871,3.41823706,2452.8,2452.7,1.72781]
[1728832169274,3.62224364,2452.8,2452.7,1.72781]
[1728832169578,2.02880658,2452.8,2452.7,1.72781]
[1728832169869,2.02880658,2452.8,2452.4,0.4905]
[1728832170072,2.38099076,2452.6,2452.5,1.72784]
[1728832170268,2.38121446,2452.6,2452.5,1.72784]
[1728832170473,1.06121446,2452.6,2452.5,1.72784]
[1728832172064,1.06121446,2452.6,2452.5,1.32]
[1728832172065,1.59148615,2452.6,2452.5,1.32]
[1728832172270,1.59148615,2452.6,2452.5,0.40784]
[1728832172469,1.59148615,2452.6,2452.5,1.72784]
[1728832173577,1.59148615,2452.6,2452.5,2.23984]
[1728832174067,1.59148615,2452.6,2452.5,3.30934422]
[1728832175166,2.32546886,2452.7,2452.5,3.07747495]
[1728832175167,2.1214594,2452.7,2452.5,3.07747495]
[1728832175362,2.32547005,2452.7,2452.6,1.72783]
[1728832175569,2.32547005,2452.7,2452.6,4.93563]
[1728832176282,2.1214594,2452.7,2452.6,4.93563]
[1728832176479,2.32547005,2452.7,2452.6,4.93563]
[1728832177275,2.32547005,2452.7,2452.6,6.18114143]
[1728832177468,0.20401065,2452.7,2452.6,6.18114143]
[1728832177665,2.32547005,2452.7,2452.6,6.18110807]
[1728832178077,0.20401065,2452.7,2452.6,6.18110589]
[1728832178275,2.32545446,2452.8,2452.7,0.40781]
[1728832178472,2.32545446,2452.8,2452.7,2.23441]
[1728832179470,1.79851424,2452.8,2452.7,10.43743992]
[1728832179784,1.59451918,2452.9,2452.8,0.40779]
[1728832179971,1.59451918,2452.9,2452.8,5.72317667]
[1728832180175,1.59451918,2452.9,2452.8,6.21397667]
[1728832180480,1.59451918,2452.9,2452.8,7.00057236]
[1728832180971,1.59451918,2452.9,2452.8,7.53397667]
[1728832181173,1.59451918,2452.9,2452.8,11.43481406]
[1728832181373,1.06270388,2452.9,2452.8,11.61075267]
[1728832183282,1.06270388,2452.9,2452.8,11.07671255]
[1728832184277,1.06270388,2453.0,2452.9,0.40778]
[1728832184480,1.59451918,2453.0,2452.9,4.5278]
[1728832184669,0.20397019,2453.1,2452.9,8.6046]
[1728832184873,1.59322062,2453.1,2453.0,1.72776]
[1728832185077,0.20396975,2453.1,2453.0,1.72776]
[1728832185379,0.61170975,2453.1,2453.0,1.72776]
[1728832185683,0.61170975,2453.1,2453.0,1.32]
[1728832185885,1.13130975,2453.1,2453.0,1.32]
[1728832186181,1.13130975,2453.1,2453.0,1.72776]
[1728832187381,1.13130975,2453.1,2453.0,1.32]
[1728832187883,2.45130975,2453.1,2453.0,1.32]
[1728832188080,1.13130975,2453.1,2452.9,3.2078]
[1728832188287,3.83850686,2453.0,2452.9,4.5278]
[1728832188488,1.12974002,2453.0,2452.9,4.93558]
[1728832188990,3.25119942,2453.0,2452.9,4.5278]
[1728832192282,3.25119942,2453.0,2452.9,1.32]
[1728832192587,4.57119942,2453.0,2452.9,1.32]
[1728832193088,8.64799942,2453.0,2452.9,1.32]
[1728832194086,8.64801572,2453.0,2452.9,1.32]
[1728832197487,8.64801572,2453.0,2452.5,1.06917909]
[1728832197488,13.43879632,2453.0,2452.5,1.06917909]
[1728832197692,13.43879632,2453.0,2452.3,3.2078]
[1728832197693,0.40784,2452.5,2452.3,3.2078]
[1728832197888,2.00019201,2452.5,2452.4,1.72786]
[1728832198089,2.69451202,2452.5,2452.4,1.72786]
[1728832198285,2.49049201,2452.5,2452.4,1.72786]
[1728832199096,2.49049201,2452.5,2452.4,1.32]
[1728832203687,2.69451443,2452.5,2452.4,1.32]
[1728832204092,2.49049201,2452.5,2452.4,1.32]
[1728832204403,0.40786,2452.4,2452.3,3.2078]
[1728832204697,2.33969,2452.4,2452.0,3.2078]
[1728832204895,1.4689114,2452.1,2452.0,3.2078]
[1728832205105,1.4689114,2452.1,2452.0,4.5278]
[1728832205296,1.9515114,2452.1,2452.0,4.5278]
[1728832205493,0.89051,2452.1,2452.0,4.5278]
[1728832205693,1.95103174,2452.1,2452.0,4.5278]
[1728832205996,0.89051,2452.1,2452.0,4.5278]
[1728832206196,3.54223507,2452.1,2452.0,4.5278]
[1728832206401,2.48201211,2452.1,2452.0,4.5278]
[1728832207091,1.95041,2452.1,2452.0,1.32]
[1728832207291,0.89051,2452.1,2452.0,1.32]
[1728832207492,2.48201211,2452.1,2452.0,1.32]
[1728832208099,1.95016117,2452.1,2452.0,1.32]
[1728832208400,2.48201211,2452.1,2452.0,1.32]
[1728832208797,2.07410211,2452.1,2452.0,1.32]
[1728832208995,3.80201211,2452.1,2452.0,1.32]
[1728832209193,3.26989364,2452.1,2452.0,1.32]
[1728832209598,4.29611211,2452.1,2452.0,1.32]
[1728832209804,3.88820211,2452.1,2451.9,1.32]
[1728832210095,0.40796,2451.8,2451.7,0.5124]
[1728832210295,0.40796,2451.8,2451.7,1.8324]
[1728832210798,1.8141,2451.8,2451.6,4.5278]
[1728832211002,1.38818,2451.7,2451.6,4.5278]
[1728832211700,2.70818,2451.7,2451.6,3.2078]
[1728832212008,1.38818,2451.7,2451.6,4.5278]
[1728832213800,2.3002,2451.7,2451.3,0.4776]
[1728832214107,0.40803,2451.4,2451.3,0.4776]
[1728832214409,0.40803,2451.4,2451.3,1.7976]
[1728832214604,0.88443,2451.4,2451.3,1.7976]
[1728832215296,0.88443,2451.4,2451.3,0.4776]
[1728832215297,2.20443,2451.4,2451.3,0.4776]
[1728832215696,0.40806,2451.2,2451.1,1.8099]
[1728832217791,0.40805,2451.3,2451.1,2.21796]
[1728832217994,1.59150211,2451.8,2451.2,9.9278]
[1728832218191,1.05936365,2451.7,2451.6,1.72799]
[1728832218402,4.12575,2451.9,2451.7,0.40797]
[1728832218701,4.12575,2451.9,2451.8,1.32]
[1728832219504,5.0378,2451.9,2451.6,2.3326]
[1728832219707,0.40798,2451.7,2451.6,2.3326]
[1728832220204,1.72798,2451.8,2451.6,2.74059]
[1728832220407,0.40798,2451.7,2451.6,2.74059]
[1728832220698,0.40798,2451.7,2451.6,2.3326]
[1728832221293,1.72798,2451.7,2451.6,0.5132]
[1728832221695,0.40799,2451.6,2451.5,4.5278]
[1728832221897,2.74329,2451.6,2451.5,3.2078]
[1728832222100,6.82249,2451.6,2451.5,3.2078]
[1728832222299,0.40803,2451.4,2451.3,0.516]
[1728832222595,0.40806,2451.2,2451.1,4.5278]
[1728832223099,1.72806,2451.2,2451.1,3.2078]
[1728832223304,2.23666,2451.2,2451.1,3.2078]
[1728832223904,0.91666,2451.2,2451.1,3.2078]
[1728832225704,0.91666,2451.2,2451.1,3.61588]
[1728832226006,0.91666,2451.2,2451.1,3.2078]
[1728832228107,0.40811,2450.9,2450.8,3.7238]
[1728832228306,0.40811,2450.9,2450.8,3.2078]
[1728832230011,0.40811,2450.9,2450.6,0.91525]
[1728832230012,0.40814,2450.8,2450.6,0.91525]
[1728832230311,0.88014,2450.8,2450.6,0.91525]
[1728832230505,0.5095,2450.7,2450.6,0.91525]
[1728832231508,0.40811,2451.0,2450.8,0.40812]
[1728832231715,0.40808,2451.1,2451.0,0.40809]
[1728832231904,0.40808,2451.1,2450.9,1.3914]
[1728832233007,0.40808,2451.1,2450.9,0.8952]
[1728832234015,0.40811,2450.9,2450.8,3.2078]
[1728832234209,0.4896,2451.0,2450.6,0.91525]
[1728832234409,0.90964,2450.8,2450.6,0.91525]
[1728832234615,0.90964,2450.8,2450.7,3.2078]
[1728832239017,7.85964,2450.8,2450.7,3.2078]
[1728832239316,7.85964,2450.8,2450.4,3.61599]
[1728832239317,0.40819,2450.5,2450.4,3.61599]
[1728832239706,0.40819,2450.5,2450.4,3.2078]
[1728832239907,0.40819,2450.5,2450.4,3.61599]
[1728832240114,0.5015,2450.8,2450.4,3.2078]
[1728832240314,0.40812,2450.9,2450.7,0.40813]
[1728832240509,0.4817,2451.0,2450.8,0.47]
[1728832240720,0.4817,2451.0,2450.9,0.40811]
[1728832241316,0.4817,2451.0,2450.9,0.90291]
[1728832242516,4.35819862,2451.4,2450.9,7.4448]
[1728832242823,1.69309793,2451.6,2451.3,3.2078]
[1728832242824,0.5057,2451.5,2451.3,3.2078]
[1728832243120,0.5057,2451.5,2451.3,3.61583]
[1728832243317,0.5057,2451.5,2451.4,0.40803]
[1728832243923,0.91371,2451.5,2451.3,4.12993]
[1728832244315,0.5057,2451.5,2451.4,0.40803]
[1728832245015,0.91788,2451.7,2451.5,0.408]
[1728832245218,1.05539862,2451.8,2451.3,4.2364]
[1728832245414,1.01981,2452.1,2451.7,0.40798]
[1728832245415,1.97324862,2451.9,2451.7,0.40798]
[1728832245621,1.56529862,2451.9,2451.7,0.40798]
[1728832245819,0.5099,2451.9,2451.7,0.40798]
[1728832246119,0.91786,2451.9,2451.7,0.40798]
[1728832247137,1.97325862,2451.9,2451.7,0.40798]
[1728832247637,1.56529862,2451.9,2451.7,0.40798]
[1728832248139,1.56529862,2451.9,2451.6,3.2078]
[1728832248339,0.40796,2451.8,2451.6,3.61579]
[1728832248834,0.40798,2451.7,2451.6,3.2078]
[1728832249738,0.40798,2451.7,2451.3,1.0286]
[1728832249739,1.05539862,2451.7,2451.3,4.2364]
[1728832249940,2.09299793,2451.9,2451.3,3.61584]
[1728832249941,0.40801,2451.5,2451.3,3.61584]
[1728832250142,0.40801,2451.5,2451.3,3.2078]
[1728832250338,0.4769,2451.4,2451.3,3.2078]
[1728832251542,0.4769,2451.4,2451.3,3.61584]
[1728832254044,0.88493,2451.4,2451.3,3.2078]
[1728832254941,1.94032862,2451.4,2451.3,3.2078]
[1728832255649,0.88493,2451.4,2451.3,3.2078]
[1728832255833,2.46802793,2451.4,2451.3,3.2078]
[1728832256036,0.40805,2451.3,2451.1,0.40807]
[1728832256239,1.46664787,2451.3,2451.1,0.40807]
[1728832257146,1.46664787,2451.3,2451.0,4.1908]
[1728832257147,1.05859787,2451.3,2451.0,4.1908]
[1728832257349,1.46667787,2451.2,2451.0,3.61588]
[1728832257539,0.40808,2451.1,2451.0,3.61588]
[1728832260053,1.05859787,2451.2,2451.1,0.40808]
[1728832260650,1.46665787,2451.2,2451.1,0.40808]
[1728832261051,1.05859787,2451.2,2451.1,0.40808]
[1728832261252,1.46664787,2451.3,2451.2,0.40806]
[1728832261955,1.46664787,2451.3,2451.1,0.40807]
[1728832262249,1.05859787,2451.2,2451.0,3.2078]
[1728832262444,1.05859787,2451.2,2451.1,0.40808]
[1728832263244,1.46664787,2451.3,2451.2,0.40806]
[1728832263449,1.05859787,2451.3,2451.2,0.40806]
[1728832263751,1.46663787,2451.3,2451.2,0.40806]
[1728832264145,1.05859787,2451.3,2451.2,0.40806]
[1728832264546,1.53549787,2451.4,2451.3,0.40804]
[1728832264945,1.05894423,2451.4,2451.3,3.61584]
[1728832267953,1.05894423,2451.4,2451.3,7.69504]
[1728832268153,1.05894423,2451.6,2451.5,0.40801]
[1728832268353,1.53064423,2451.7,2451.4,0.9678]
[1728832268660,1.53064423,2451.7,2451.6,0.40799]
[1728832269351,1.93862423,2451.7,2451.6,3.61579]
[1728832269954,1.53064423,2451.7,2451.6,3.61579]
[1728832271154,1.93862423,2451.7,2451.6,3.61579]
[1728832271455,1.93862423,2451.7,2451.6,3.2078]
[1728832271761,1.93862423,2451.7,2451.6,3.61579]
[1728832272457,0.87968,2451.7,2451.6,3.61579]
[1728832274459,0.4717,2451.7,2451.6,3.61579]
[1728832274858,0.87968,2451.7,2451.6,3.61579]
[1728832275252,0.4717,2451.7,2451.6,3.61579]
[1728832276150,0.4717,2451.7,2451.6,3.2078]
[1728832276361,12.3380976,2451.7,2451.3,3.2078]
[1728832276555,12.3380976,2451.7,2451.3,3.61584]
[1728832276556,1.46695924,2451.4,2451.3,3.61584]
[1728832276752,0.40804,2451.4,2451.3,3.2078]
[1728832276950,2.96491886,2451.4,2451.3,3.2078]
[1728832277262,3.16904368,2451.4,2451.3,3.2078]
[1728832277463,3.16904406,2451.4,2451.3,3.2078]
[1728832277762,0.40805,2451.3,2451.1,0.40806]
[1728832277954,1.05900154,2451.2,2451.1,0.40808]
[1728832283361,1.05900154,2451.2,2451.1,3.61588]
[1728832284457,1.05900154,2451.2,2451.1,7.69588]
[1728832284660,0.50298,2451.7,2451.2,0.40806]
[1728832284661,1.05900154,2451.3,2451.2,0.40806]
[1728832284862,0.91557,2451.8,2451.3,0.40804]
[1728832284863,1.05900154,2451.4,2451.3,0.40804]
[1728832285159,1.05900154,2451.6,2451.5,0.40801]
[1728832285362,1.05900154,2451.7,2451.5,3.2078]
[1728832285561,1.05900154,2451.7,2451.5,3.7043]
[1728832285756,1.05900154,2451.7,2451.6,0.40799]
[1728832286061,1.58837886,2451.8,2451.6,0.5054]
[1728832286270,1.58837886,2451.8,2451.7,0.40798]
[1728832286461,1.0604778,2451.8,2451.7,4.48718]
[1728832286663,1.0604778,2451.9,2451.7,5.31661339]
[1728832286863,1.0604778,2451.9,2451.8,3.61576]
[1728832287065,1.0604778,2451.9,2451.8,4.67954873]
[1728832287260,1.0604778,2451.9,2451.8,3.61576]
[1728832288664,2.59057886,2452.1,2451.9,0.40794]
[1728832288870,2.59057886,2452.1,2452.0,0.40793]
[1728832289065,2.79463619,2452.1,2452.0,0.40793]
[1728832289267,2.59057886,2452.1,2452.0,0.40793]
[1728832290066,2.99848886,2452.1,2452.0,0.40793]
[1728832290868,1.0022,2452.1,2452.0,0.40793]
[1728832292164,2.06160589,2452.1,2452.0,0.40793]
[1728832292366,1.41011,2452.1,2452.0,0.40793]
[1728832292563,2.46952076,2452.1,2452.0,0.40793]
[1728832292964,1.0022,2452.1,2452.0,0.40793]
[1728832293170,2.06146168,2452.1,2452.0,0.40793]
[1728832293471,0.40794,2452.0,2451.9,0.40794]
[1728832294561,3.09577886,2452.1,2451.8,3.2078]
[1728832294562,0.40794,2451.9,2451.8,3.61575]
[1728832298366,1.99631886,2452.0,2451.8,3.61575]
[1728832298672,0.40794,2451.9,2451.8,3.61575]
[1728832299073,1.99630886,2452.0,2451.9,0.40794]
[1728832300073,0.40793,2452.0,2451.9,0.40794]
[1728832300380,1.99630886,2452.0,2451.9,0.40794]
[1728832300677,0.40793,2452.0,2451.9,0.40794]
[1728832301272,3.09577886,2452.1,2451.9,0.40794]
[1728832301471,0.40793,2452.0,2451.9,0.40794]
[1728832302976,3.50369886,2452.1,2451.9,0.40794]
[1728832303182,0.40793,2452.0,2451.9,0.40794]
[1728832303783,3.09577886,2452.1,2452.0,0.40793]
[1728832304175,3.29984311,2452.1,2452.0,0.40793]
[1728832304782,3.70775311,2452.1,2452.0,0.40793]
[1728832306278,3.70776311,2452.1,2452.0,0.40793]
[1728832306578,2.11938425,2452.1,2452.0,0.40793]
[1728832306781,3.70799263,2452.1,2452.0,0.40793]
[1728832307081,1.71146425,2452.1,2451.8,3.724]
[1728832307282,1.91532,2452.1,2452.0,0.40793]
[1728832307489,2.11939143,2452.1,2452.0,0.40793]
[1728832307784,2.11940143,2452.1,2451.9,0.40793]
[1728832307983,1.99661449,2452.0,2451.9,0.40793]
[1728832308183,1.58868449,2452.0,2451.9,0.40793]
[1728832308582,0.40794,2451.9,2451.8,3.2078]
[1728832309083,0.40794,2451.9,2451.8,3.61576]
[1728832312484,0.40794,2451.9,2451.8,0.40796]
[1728832312689,0.40794,2451.9,2451.8,3.61576]
[1728832312991,0.40794,2451.9,2451.8,0.40796]
[1728832313187,0.40794,2451.9,2451.8,3.61576]
[1728832313792,1.72794,2451.9,2451.8,3.61576]
[1728832314892,1.72794,2451.9,2451.8,3.2078]
[1728832315188,1.72794,2451.9,2451.8,3.61576]
[1728832315490,1.32,2451.9,2451.8,3.61576]
[1728832315688,3.31662449,2452.0,2451.9,0.40794]
[1728832315883,3.52069224,2452.0,2451.9,0.40794]
[1728832316192,3.31662449,2452.0,2451.9,0.40794]
[1728832317091,1.58868449,2452.0,2451.9,0.40794]
[1728832317293,4.82399449,2452.1,2452.0,0.40793]
[1728832317493,5.02805794,2452.1,2452.0,0.40793]
[1728832318200,5.02805755,2452.1,2452.0,0.40793]
[1728832318390,3.43937306,2452.1,2452.0,0.40793]
[1728832319381,3.03146306,2452.1,2451.9,0.4979]
[1728832319581,3.52125236,2452.0,2451.9,0.40793]
[1728832320688,3.11332236,2452.0,2451.9,0.40793]
[1728832320994,3.52125236,2452.0,2451.9,0.40793]
[1728832321494,3.52125427,2452.0,2451.9,0.40793]
[1728832324498,1.93199848,2452.0,2451.9,0.40793]
[1728832325397,0.40794,2451.9,2451.8,3.61576]
[1728832325591,3.31813015,2451.9,2451.8,3.61576]
[1728832326194,3.52220101,2451.9,2451.8,3.61576]
[1728832327200,1.93201086,2451.9,2451.8,3.61576]
[1728832327496,1.52407086,2451.9,2451.8,3.61576]
[1728832327895,3.11509577,2451.9,2451.8,3.61576]
[1728832328290,1.52407086,2451.9,2451.8,3.61576]
[1728832328998,0.20407086,2451.9,2451.8,3.61576]
[1728832329495,0.20407086,2451.9,2451.8,4.60546]
[1728832330200,2.3148681,2451.9,2451.8,4.60546]
[1728832330392,2.3148681,2451.9,2451.8,5.41680697]
[1728832331499,2.3148681,2451.9,2451.8,6.4805957]
[1728832332398,2.3148681,2451.9,2451.8,7.8005957]
[1728832332797,2.11079724,2451.9,2451.8,7.8005957]
[1728832333400,0.20407086,2451.9,2451.8,7.3926357]
[1728832333699,2.3148681,2451.9,2451.8,7.8005957]
[1728832333897,2.3148681,2451.9,2451.8,6.4805957]
[1728832334093,2.3148681,2451.9,2451.8,6.0031957]
[1728832334706,4.0428081,2451.9,2451.8,5.4908957]
[1728832334998,4.0428081,2451.9,2451.8,3.50897892]
[1728832334999,1.93201086,2451.9,2451.8,3.50897892]
[1728832335193,1.93201086,2451.9,2451.8,3.33534201]
[1728832335501,1.93201086,2451.9,2451.8,3.91698768]
[1728832335697,1.93202162,2451.9,2451.8,3.91698768]
[1728832336197,1.93202162,2451.9,2451.8,3.2078]
[1728832336402,1.93202162,2451.9,2451.8,3.33535315]
[1728832336597,1.93202162,2451.9,2451.8,3.2078]
[1728832336795,6.01042162,2451.9,2451.8,3.2078]
[1728832336996,10.57667524,2451.9,2451.8,3.2078]
[1728832337196,7.94048563,2451.9,2451.8,3.2078]
[1728832338192,7.94048563,2451.9,2451.5,1.47179873]
[1728832338193,0.408,2451.6,2451.5,1.47179873]
[1728832338395,3.85240716,2451.6,2451.5,0.29831675]
[1728832338595,4.05648878,2451.6,2451.5,0.29831675]
[1728832339206,3.64848878,2451.6,2451.5,0.29831675]
[1728832339400,1.52408162,2451.6,2451.5,0.40801]
[1728832339605,3.64790811,2451.6,2451.5,0.40801]
[1728832339796,3.64790811,2451.6,2451.4,2.38378873]
[1728832339995,0.20408162,2451.5,2451.4,2.79179873]
[1728832340201,0.20408162,2451.5,2451.4,3.60038973]
[1728832340504,3.64790853,2451.5,2451.4,0.70632517]
[1728832340707,1.52410944,2451.5,2451.4,2.02632517]
[1728832340904,1.52410944,2451.5,2451.4,1.89875622]
[1728832341100,3.64790853,2451.5,2451.4,1.72801]
[1728832342704,1.52410944,2451.5,2451.4,1.72801]
[1728832343502,3.64790853,2451.5,2451.4,0.40801]
[1728832343906,3.64790853,2451.5,2451.2,5.521]
[1728832343907,1.52410944,2451.5,2451.3,0.40803]
[1728832344112,4.53417353,2451.4,2451.3,0.40803]
[1728832345005,4.53418888,2451.4,2451.3,0.40803]
[1728832345212,2.41205479,2451.4,2451.3,0.40803]
[1728832348409,2.41204903,2451.4,2451.3,0.40803]
[1728832349505,2.20793,2451.4,2451.3,0.40803]
[1728832349706,3.59396588,2451.4,2451.3,0.40803]
[1728832349908,1.58994912,2451.4,2451.3,1.72803]
[1728832350107,1.58994912,2451.4,2451.3,2.74374]
[1728832350108,1.06000921,2451.4,2451.3,2.74374]
[1728832351718,1.06000921,2451.5,2451.3,14.54254715]
[1728832351921,1.06000921,2451.7,2451.4,7.26171318]
[1728832352123,1.06000921,2451.7,2451.6,4.93579]
[1728832355619,1.32,2451.7,2451.6,4.93579]
[1728832356527,0.40803,2451.5,2451.3,3.61583]
[1728832356827,1.32,2451.4,2451.3,3.61583]
[1728832357019,1.72803,2451.4,2451.3,3.61583]
[1728832357218,1.32,2451.4,2451.3,3.61583]
[1728832359321,1.72803,2451.4,2451.3,3.61583]
[1728832360024,3.31819227,2451.4,2451.3,3.61583]
[1728832360626,3.52230849,2451.4,2451.3,3.61583]
[1728832360929,3.31819227,2451.4,2451.3,3.61583]
[1728832362427,2.91016227,2451.4,2451.3,3.61583]
[1728832364526,3.52230911,2451.4,2451.3,3.2078]
[1728832364826,1.93214684,2451.4,2451.3,3.61584]
[1728832365828,1.93214684,2451.4,2451.3,3.2078]
[1728832368125,7.72545969,2451.4,2450.9,3.2078]